[Event "Live Chess"]
[Site "Chess.com"]
[Date "2024.06.02"]
[Round "-"]
[White "wadsy27"]
[Black "NeilDruggan73"]
[Result "1-0"]
[WhiteElo "2570"]
[BlackElo "1695"]
[TimeControl "300"]
[EndTime "2:46:47 PDT"]
[Termination "wadsy27 won by resignation"]

1. c4 {[%clk 0:04:58.5]} 1... Nf6 {[%clk 0:04:57.8]} 2. g3 {[%clk 0:04:58.4]}
2... g6 {[%clk 0:04:54.7]} 3. Bg2 {[%clk 0:04:58]} 3... Bg7 {[%clk 0:04:54.1]}
4. Nc3 {[%clk 0:04:57.9]} 4... Nc6 {[%clk 0:04:52.8]} 5. e4 {[%clk 0:04:57.6]}
5... Rb8 {[%clk 0:04:51.9]} 6. Nge2 {[%clk 0:04:57.2]} 6... e6 {[%clk
0:04:50.2]} 7. d4 {[%clk 0:04:56]} 7... d6 {[%clk 0:04:49.2]} 8. O-O {[%clk
0:04:54.7]} 8... O-O {[%clk 0:04:46.5]} 9. Be3 {[%clk 0:04:53.8]} 9... e5 {[%clk
0:04:45.7]} 10. d5 {[%clk 0:04:52.5]} 10... Ne7 {[%clk 0:04:43.2]} 11. h3 {[%clk
0:04:51.7]} 11... b6 {[%clk 0:04:41.2]} 12. b4 {[%clk 0:04:49]} 12... a6 {[%clk
0:04:39.8]} 13. a4 {[%clk 0:04:47.7]} 13... Nh5 {[%clk 0:04:33.6]} 14. c5 {[%clk
0:04:34.4]} 14... f5 {[%clk 0:04:25.3]} 15. cxd6 {[%clk 0:04:28]} 15... Qxd6
{[%clk 0:04:20.6]} 16. exf5 {[%clk 0:04:23.7]} 16... gxf5 {[%clk 0:04:15.2]} 17.
g4 {[%clk 0:04:06.6]} 17... fxg4 {[%clk 0:04:09.9]} 18. Ne4 {[%clk 0:04:04.9]}
18... Qg6 {[%clk 0:04:03.4]} 19. h4 {[%clk 0:04:04]} 19... Bb7 {[%clk
0:03:44.5]} 20. N2g3 {[%clk 0:03:52.8]} 20... Rbd8 {[%clk 0:03:43]} 21. d6
{[%clk 0:03:36.1]} 21... cxd6 {[%clk 0:03:18.4]} 22. Bxb6 {[%clk 0:03:16]} 22...
Rd7 {[%clk 0:03:15.9]} 23. b5 {[%clk 0:02:54.7]} 23... Nxg3 {[%clk 0:03:04.1]}
24. Nxg3 {[%clk 0:02:52.8]} 24... Bxg2 {[%clk 0:03:02.4]} 25. Kxg2 {[%clk
0:02:52.2]} 25... d5 {[%clk 0:02:55]} 26. Bc5 {[%clk 0:02:48.5]} 26... Nf5
{[%clk 0:02:27.8]} 27. Nxf5 {[%clk 0:02:33.8]} 27... Rxf5 {[%clk 0:02:24.7]} 28.
bxa6 {[%clk 0:02:31.2]} 28... e4 {[%clk 0:02:06.1]} 29. a7 {[%clk 0:02:25]}
29... Qa6 {[%clk 0:01:54.3]} 30. Rb1 {[%clk 0:02:21]} 30... Rxa7 {[%clk
0:01:37.1]} 31. Qxg4 {[%clk 0:02:17.1]} 31... Kh8 {[%clk 0:01:30.3]} 32. Qxf5
{[%clk 0:02:13.4]} 1-0

[Event "Live Chess"]
[Site "Chess.com"]
[Date "2024.06.02"]
[Round "-"]
[White "grillage"]
[Black "vincents82"]
[Result "0-1"]
[WhiteElo "1859"]
[BlackElo "1990"]
[TimeControl "300"]
[EndTime "2:46:58 PDT"]
[Termination "vincents82 won by resignation"]

1. d4 {[%clk 0:04:57.9]} 1... d5 {[%clk 0:04:58.9]} 2. Nf3 {[%clk 0:04:56.4]}
2... Nf6 {[%clk 0:04:55]} 3. c4 {[%clk 0:04:55.3]} 3... c6 {[%clk 0:04:54]} 4.
Qc2 {[%clk 0:04:53.6]} 4... dxc4 {[%clk 0:04:52.4]} 5. Qxc4 {[%clk 0:04:50.9]}
5... Bf5 {[%clk 0:04:51.2]} 6. Nc3 {[%clk 0:04:48.8]} 6... e6 {[%clk 0:04:50.2]}
7. g3 {[%clk 0:04:46.9]} 7... Nbd7 {[%clk 0:04:49.1]} 8. Bg2 {[%clk 0:04:46]}
8... Be7 {[%clk 0:04:48.1]} 9. O-O {[%clk 0:04:45]} 9... O-O {[%clk 0:04:47.1]}
10. Re1 {[%clk 0:04:44.1]} 10... Ne4 {[%clk 0:04:46]} 11. Qb3 {[%clk 0:04:39.5]}
11... Qb6 {[%clk 0:04:39.2]} 12. Qxb6 {[%clk 0:04:21]} 12... axb6 {[%clk
0:04:38.2]} 13. Nd2 {[%clk 0:04:17.5]} 13... Nxc3 {[%clk 0:04:35.4]} 14. bxc3
{[%clk 0:04:16]} 14... b5 {[%clk 0:04:33.7]} 15. e4 {[%clk 0:04:00.8]} 15... Bg6
{[%clk 0:04:32.2]} 16. Nf3 {[%clk 0:03:31]} 16... Nf6 {[%clk 0:04:21.9]} 17. Ne5
{[%clk 0:03:24.6]} 17... Ba3 {[%clk 0:04:14.3]} 18. Nxg6 {[%clk 0:03:21.2]}
18... hxg6 {[%clk 0:04:11.3]} 19. Bf4 {[%clk 0:03:18.1]} 19... Bb2 {[%clk
0:04:08.7]} 20. Rab1 {[%clk 0:03:12.9]} 20... Bxc3 {[%clk 0:04:06.8]} 21. Re2
{[%clk 0:03:10.7]} 21... Bxd4 {[%clk 0:04:01.2]} 22. h4 {[%clk 0:02:50.9]} 22...
e5 {[%clk 0:03:59]} 23. Bg5 {[%clk 0:02:48.8]} 23... Nd7 {[%clk 0:03:54.6]} 24.
Rd2 {[%clk 0:02:40.1]} 24... Ra3 {[%clk 0:03:52.3]} 25. Be7 {[%clk 0:02:34.6]}
25... Rfa8 {[%clk 0:03:46.2]} 26. Bxa3 {[%clk 0:02:33.4]} 26... Rxa3 {[%clk
0:03:44.8]} 27. Kh2 {[%clk 0:02:27.3]} 27... Nb6 {[%clk 0:03:39.9]} 28. f4
{[%clk 0:02:24.9]} 28... Nc4 {[%clk 0:03:38]} 29. Rdd1 {[%clk 0:02:18.8]} 29...
Rxa2 {[%clk 0:03:33.1]} 30. fxe5 {[%clk 0:02:15.5]} 30... Nxe5 {[%clk
0:03:24.9]} 31. Kh3 {[%clk 0:02:04.1]} 31... Ra4 {[%clk 0:03:08.9]} 32. Rd2
{[%clk 0:01:48.4]} 32... Nd7 {[%clk 0:02:56.8]} 33. Rbd1 {[%clk 0:01:41.4]}
33... c5 {[%clk 0:02:55.6]} 34. e5 {[%clk 0:01:38.4]} 34... Nxe5 {[%clk
0:02:51.8]} 35. Bxb7 {[%clk 0:01:37.2]} 35... Ra7 {[%clk 0:02:47.6]} 36. Bd5
{[%clk 0:01:34.7]} 36... Rd7 {[%clk 0:02:34.8]} 37. Ba2 {[%clk 0:01:31.4]} 37...
Nf3 {[%clk 0:02:29.3]} 38. Re2 {[%clk 0:01:25.6]} 38... Ng1+ {[%clk 0:02:26.3]}
0-1

[Event "Live Chess"]
[Site "Chess.com"]
[Date "2024.06.02"]
[Round "-"]
[White "blunderabit"]
[Black "Thebigsqueeze"]
[Result "0-1"]
[WhiteElo "1754"]
[BlackElo "2284"]
[TimeControl "300"]
[EndTime "2:47:00 PDT"]
[Termination "Thebigsqueeze won by resignation"]

1. e4 {[%clk 0:04:56.6]} 1... e6 {[%clk 0:04:58.6]} 2. d4 {[%clk 0:04:53.5]}
2... d5 {[%clk 0:04:58.1]} 3. Bd3 {[%clk 0:04:51.9]} 3... c5 {[%clk 0:04:55.9]}
4. c3 {[%clk 0:04:46.7]} 4... Nc6 {[%clk 0:04:54.2]} 5. Nf3 {[%clk 0:04:42.7]}
5... Nf6 {[%clk 0:04:51.2]} 6. e5 {[%clk 0:04:40.5]} 6... Nd7 {[%clk 0:04:50]}
7. dxc5 {[%clk 0:04:25.5]} 7... Bxc5 {[%clk 0:04:45.9]} 8. Bf4 {[%clk
0:04:19.6]} 8... f6 {[%clk 0:04:43.9]} 9. exf6 {[%clk 0:04:16.2]} 9... Qxf6
{[%clk 0:04:42.6]} 10. Bg5 {[%clk 0:04:05.9]} 10... Qf7 {[%clk 0:04:40.7]} 11.
O-O {[%clk 0:04:02.5]} 11... e5 {[%clk 0:04:38.9]} 12. Bb5 {[%clk 0:03:35.6]}
12... e4 {[%clk 0:04:32.4]} 13. Nd4 {[%clk 0:03:32.1]} 13... Nde5 {[%clk
0:04:15.8]} 14. Nd2 {[%clk 0:02:29.5]} 14... O-O {[%clk 0:04:07.6]} 15. N2b3
{[%clk 0:02:18]} 15... Bd6 {[%clk 0:04:06.1]} 16. Bh4 {[%clk 0:02:06.4]} 16...
Bg4 {[%clk 0:03:40.7]} 17. Qd2 {[%clk 0:01:56.8]} 17... a6 {[%clk 0:02:25.8]}
18. Be2 {[%clk 0:01:37.6]} 18... Rae8 {[%clk 0:02:15.2]} 19. Bg3 {[%clk
0:01:34.7]} 19... Bxe2 {[%clk 0:01:51.8]} 20. Nxe2 {[%clk 0:01:22.5]} 20... Bb8
{[%clk 0:01:46.3]} 21. Rad1 {[%clk 0:00:57.6]} 21... Nd3 {[%clk 0:01:44.5]} 22.
Nbc1 {[%clk 0:00:53.9]} 22... Bxg3 {[%clk 0:01:23.5]} 23. fxg3 {[%clk
0:00:41.9]} 23... Qe7 {[%clk 0:01:15.5]} 24. Nxd3 {[%clk 0:00:38]} 24... Rxf1+
{[%clk 0:01:12.5]} 25. Rxf1 {[%clk 0:00:34.9]} 25... exd3 {[%clk 0:01:11.5]} 26.
Nf4 {[%clk 0:00:33.5]} 26... Qc5+ {[%clk 0:00:56.8]} 27. Kh1 {[%clk 0:00:30.5]}
27... Qc4 {[%clk 0:00:42.1]} 28. Qxd3 {[%clk 0:00:20.2]} 28... Qxd3 {[%clk
0:00:41]} 29. Nxd3 {[%clk 0:00:18.9]} 29... Re2 {[%clk 0:00:39.6]} 30. h3 {[%clk
0:00:15.1]} 30... Rd2 {[%clk 0:00:36.6]} 31. Rf3 {[%clk 0:00:12]} 31... d4
{[%clk 0:00:35.5]} 32. cxd4 {[%clk 0:00:07.6]} 32... Nxd4 {[%clk 0:00:33.9]} 33.
Re3 {[%clk 0:00:07.1]} 33... Nf5 {[%clk 0:00:26]} 34. Kh2 {[%clk 0:00:06.4]}
34... Nxe3 {[%clk 0:00:24.3]} 0-1

[Event "Live Chess"]
[Site "Chess.com"]
[Date "2024.06.02"]
[Round "-"]
[White "WorcesterYork"]
[Black "GoldsmanB"]
[Result "1-0"]
[WhiteElo "2476"]
[BlackElo "1102"]
[TimeControl "300"]
[EndTime "2:47:28 PDT"]
[Termination "WorcesterYork won by checkmate"]

1. d4 {[%clk 0:04:58.9]} 1... Nf6 {[%clk 0:04:56.7]} 2. Bg5 {[%clk 0:04:58.4]}
2... d5 {[%clk 0:04:51.8]} 3. Nd2 {[%clk 0:04:57.3]} 3... Nc6 {[%clk 0:04:49.9]}
4. e3 {[%clk 0:04:56.5]} 4... e6 {[%clk 0:04:49.1]} 5. Ngf3 {[%clk 0:04:54.3]}
5... Be7 {[%clk 0:04:47.1]} 6. c3 {[%clk 0:04:53.3]} 6... Ne4 {[%clk 0:04:43.3]}
7. Bxe7 {[%clk 0:04:51.7]} 7... Qxe7 {[%clk 0:04:43.2]} 8. Nxe4 {[%clk 0:04:51]}
8... dxe4 {[%clk 0:04:43.1]} 9. Nd2 {[%clk 0:04:50.5]} 9... f5 {[%clk
0:04:40.9]} 10. Bb5 {[%clk 0:04:49.5]} 10... Bd7 {[%clk 0:04:39.3]} 11. Nc4
{[%clk 0:04:48.7]} 11... O-O-O {[%clk 0:04:37.1]} 12. a4 {[%clk 0:04:46.6]}
12... Nb8 {[%clk 0:04:34.1]} 13. Bxd7+ {[%clk 0:04:44.4]} 13... Qxd7 {[%clk
0:04:34]} 14. Ne5 {[%clk 0:04:43.3]} 14... Qe7 {[%clk 0:04:30.9]} 15. a5 {[%clk
0:04:40.7]} 15... a6 {[%clk 0:04:29.3]} 16. b4 {[%clk 0:04:38]} 16... Qe8 {[%clk
0:04:17]} 17. Qe2 {[%clk 0:04:36]} 17... Nc6 {[%clk 0:04:15.4]} 18. Nxc6 {[%clk
0:04:32.6]} 18... Qxc6 {[%clk 0:04:15.3]} 19. Rc1 {[%clk 0:04:31.2]} 19... Qb5
{[%clk 0:04:07.8]} 20. Rb1 {[%clk 0:04:23]} 20... Qxe2+ {[%clk 0:04:05.8]} 21.
Kxe2 {[%clk 0:04:22]} 21... g6 {[%clk 0:04:03.8]} 22. c4 {[%clk 0:04:20.8]}
22... Rd6 {[%clk 0:04:01]} 23. h4 {[%clk 0:04:19.2]} 23... Rhd8 {[%clk
0:03:57.1]} 24. f4 {[%clk 0:04:17.1]} 24... exf3+ {[%clk 0:03:55.3]} 25. gxf3
{[%clk 0:04:10.8]} 25... c6 {[%clk 0:03:49.5]} 26. f4 {[%clk 0:04:09.6]} 26...
R6d7 {[%clk 0:03:47.8]} 27. h5 {[%clk 0:04:08.6]} 27... Rg8 {[%clk 0:03:42]} 28.
Rbg1 {[%clk 0:04:06.3]} 28... Rdg7 {[%clk 0:03:38.1]} 29. hxg6 {[%clk
0:03:56.1]} 29... Rxg6 {[%clk 0:03:36.1]} 30. Rxg6 {[%clk 0:03:54.8]} 30... Rxg6
{[%clk 0:03:35.2]} 31. Rxh7 {[%clk 0:03:51.1]} 31... Rg2+ {[%clk 0:03:34.1]} 32.
Kd3 {[%clk 0:03:50.2]} 32... Rb2 {[%clk 0:03:31.9]} 33. Kc3 {[%clk 0:03:49.2]}
33... Re2 {[%clk 0:03:30.6]} 34. Rh3 {[%clk 0:03:48.1]} 34... Kd7 {[%clk
0:03:28.4]} 35. Kd3 {[%clk 0:03:46.6]} 35... Rb2 {[%clk 0:03:26.9]} 36. Kc3
{[%clk 0:03:46]} 36... Re2 {[%clk 0:03:25.8]} 37. d5 {[%clk 0:03:36.6]} 37...
cxd5 {[%clk 0:03:23.3]} 38. cxd5 {[%clk 0:03:36.5]} 38... exd5 {[%clk
0:03:21.9]} 39. Kd4 {[%clk 0:03:35.7]} 39... Kd6 {[%clk 0:03:20.3]} 40. Rh6+
{[%clk 0:03:33.9]} 40... Kc7 {[%clk 0:03:19.1]} 41. Rh7+ {[%clk 0:03:29.6]}
41... Kd6 {[%clk 0:03:18]} 42. Rxb7 {[%clk 0:03:27.2]} 42... Kc6 {[%clk
0:03:16.5]} 43. Rb6+ {[%clk 0:03:26.3]} 43... Kc7 {[%clk 0:03:14.9]} 44. Rxa6
{[%clk 0:03:25.6]} 44... Rb2 {[%clk 0:03:13.9]} 45. Rb6 {[%clk 0:03:24.2]} 45...
Rd2+ {[%clk 0:03:11.3]} 46. Ke5 {[%clk 0:03:22.7]} 46... Rd3 {[%clk 0:03:10.1]}
47. Kxf5 {[%clk 0:03:20.6]} 47... Rxe3 {[%clk 0:03:09]} 48. b5 {[%clk
0:03:14.5]} 48... d4 {[%clk 0:03:08.1]} 49. Rc6+ {[%clk 0:03:13.5]} 49... Kb7
{[%clk 0:03:06.6]} 50. Rd6 {[%clk 0:03:12.4]} 50... d3 {[%clk 0:03:05.2]} 51.
a6+ {[%clk 0:03:03.6]} 51... Ka7 {[%clk 0:03:03.9]} 52. Kg4 {[%clk 0:03:01.6]}
52... Ka8 {[%clk 0:02:52.8]} 53. b6 {[%clk 0:02:59.5]} 53... Kb8 {[%clk
0:02:51.8]} 54. Rd8# {[%clk 0:02:58.1]} 1-0

[Event "Live Chess"]
[Site "Chess.com"]
[Date "2024.06.02"]
[Round "-"]
[White "juniortay"]
[Black "CheckThis4"]
[Result "0-1"]
[WhiteElo "2369"]
[BlackElo "2698"]
[TimeControl "300"]
[EndTime "2:47:29 PDT"]
[Termination "CheckThis4 won by resignation"]

1. e4 {[%clk 0:04:57.4]} 1... c5 {[%clk 0:04:55.9]} 2. Nf3 {[%clk 0:04:56.3]}
2... Nc6 {[%clk 0:04:54]} 3. b4 {[%clk 0:04:55.4]} 3... e5 {[%clk 0:04:45.8]} 4.
b5 {[%clk 0:04:53]} 4... Nd4 {[%clk 0:04:39.3]} 5. Bc4 {[%clk 0:04:52.4]} 5...
d6 {[%clk 0:04:31.4]} 6. c3 {[%clk 0:04:51.3]} 6... Ne6 {[%clk 0:04:16.2]} 7.
O-O {[%clk 0:04:48.6]} 7... Nf6 {[%clk 0:04:10.6]} 8. Re1 {[%clk 0:04:47.3]}
8... Be7 {[%clk 0:04:08.9]} 9. d4 {[%clk 0:04:46.1]} 9... Qc7 {[%clk 0:03:59.9]}
10. Na3 {[%clk 0:04:40.7]} 10... O-O {[%clk 0:03:56.1]} 11. Qb3 {[%clk
0:04:23.7]} 11... cxd4 {[%clk 0:03:49.1]} 12. cxd4 {[%clk 0:04:22.7]} 12... exd4
{[%clk 0:03:48.2]} 13. Bb2 {[%clk 0:04:18.4]} 13... Nc5 {[%clk 0:03:28.8]} 14.
Qc2 {[%clk 0:04:05.9]} 14... Be6 {[%clk 0:03:06.5]} 15. Nxd4 {[%clk 0:03:56.2]}
15... Bxc4 {[%clk 0:03:04.1]} 16. Qxc4 {[%clk 0:03:52.2]} 16... Rac8 {[%clk
0:03:00.2]} 17. Rac1 {[%clk 0:03:50.2]} 17... Nfd7 {[%clk 0:02:55.3]} 18. Nf5
{[%clk 0:03:47]} 18... Ne5 {[%clk 0:02:53.6]} 19. Bxe5 {[%clk 0:03:35.4]} 19...
dxe5 {[%clk 0:02:51.9]} 20. Qe2 {[%clk 0:03:32.5]} 20... g6 {[%clk 0:02:47]} 21.
Ne3 {[%clk 0:02:52.3]} 21... Qa5 {[%clk 0:02:38.5]} 22. Nac4 {[%clk 0:02:48]}
22... Qxb5 {[%clk 0:02:34.8]} 23. Rb1 {[%clk 0:02:29.8]} 23... Qa6 {[%clk
0:02:32]} 24. Qg4 {[%clk 0:02:23.6]} 24... h5 {[%clk 0:02:18.4]} 25. Qf3 {[%clk
0:02:17.2]} 25... Nd3 {[%clk 0:02:06.9]} 26. Nd5 {[%clk 0:02:09.1]} 26... Nxe1
{[%clk 0:01:38.2]} 27. Nxe7+ {[%clk 0:02:07.7]} 27... Kg7 {[%clk 0:01:33.1]} 28.
Rxe1 {[%clk 0:01:49.1]} 28... Rxc4 {[%clk 0:01:30]} 29. Qg3 {[%clk 0:01:20.4]}
29... Qf6 {[%clk 0:01:27.4]} 30. Nd5 {[%clk 0:01:15.5]} 30... h4 {[%clk
0:01:24.5]} 31. Qg4 {[%clk 0:01:10.6]} 31... Qe6 {[%clk 0:01:12.6]} 32. Qxh4
{[%clk 0:01:07.6]} 32... Qxd5 {[%clk 0:01:09]} 0-1

[Event "Live Chess"]
[Site "Chess.com"]
[Date "2024.06.02"]
[Round "-"]
[White "Pandreq"]
[Black "LL220284LL"]
[Result "0-1"]
[WhiteElo "1209"]
[BlackElo "2507"]
[TimeControl "300"]
[EndTime "2:47:54 PDT"]
[Termination "LL220284LL won by resignation"]

1. d4 {[%clk 0:04:55.5]} 1... c6 {[%clk 0:04:59.9]} 2. c4 {[%clk 0:04:52.3]}
2... g6 {[%clk 0:04:59.5]} 3. Nc3 {[%clk 0:04:50.1]} 3... Bg7 {[%clk 0:04:59.1]}
4. Nf3 {[%clk 0:04:48.2]} 4... d6 {[%clk 0:04:58.7]} 5. Bf4 {[%clk 0:04:46.1]}
5... Nd7 {[%clk 0:04:57.1]} 6. e3 {[%clk 0:04:45.3]} 6... Qa5 {[%clk 0:04:55.7]}
7. Be2 {[%clk 0:04:41.4]} 7... Rb8 {[%clk 0:04:50.8]} 8. Nd2 {[%clk 0:04:39.8]}
8... Ngf6 {[%clk 0:04:46.7]} 9. Nb3 {[%clk 0:04:38.1]} 9... Qd8 {[%clk
0:04:45.6]} 10. O-O {[%clk 0:04:36.5]} 10... O-O {[%clk 0:04:44.3]} 11. Rc1
{[%clk 0:04:23.1]} 11... e5 {[%clk 0:04:42.9]} 12. dxe5 {[%clk 0:04:20.5]} 12...
dxe5 {[%clk 0:04:41.8]} 13. Bg3 {[%clk 0:04:18.6]} 13... Qe7 {[%clk 0:04:40.8]}
14. Bf3 {[%clk 0:04:07.3]} 14... Rd8 {[%clk 0:04:38.4]} 15. Qe2 {[%clk
0:04:06.3]} 15... e4 {[%clk 0:04:32.6]} 16. Bg4 {[%clk 0:03:49.8]} 16... Nxg4
{[%clk 0:04:29]} 17. Qxg4 {[%clk 0:03:49.4]} 17... Nf6 {[%clk 0:04:21.4]} 18.
Qe2 {[%clk 0:03:44.6]} 18... Ra8 {[%clk 0:04:16.1]} 19. Nd4 {[%clk 0:03:39]}
19... Bg4 {[%clk 0:04:11.8]} 20. Qc2 {[%clk 0:03:28.8]} 20... a6 {[%clk
0:04:04]} 21. Nde2 {[%clk 0:03:14.7]} 21... Rd3 {[%clk 0:03:58.4]} 22. Nf4
{[%clk 0:03:03.2]} 22... Rd7 {[%clk 0:03:54]} 23. Nce2 {[%clk 0:02:54.5]} 23...
Rad8 {[%clk 0:03:50.5]} 24. Rfd1 {[%clk 0:02:35.2]} 24... Bf5 {[%clk 0:03:31.2]}
25. Rxd7 {[%clk 0:02:31.8]} 25... Rxd7 {[%clk 0:03:29.3]} 26. Rd1 {[%clk
0:02:26.1]} 26... Ng4 {[%clk 0:03:27.2]} 27. Rxd7 {[%clk 0:02:18.2]} 27... Qxd7
{[%clk 0:03:25.2]} 28. b3 {[%clk 0:02:12.5]} 28... Ne5 {[%clk 0:03:22]} 29. Nd4
{[%clk 0:02:07.3]} 29... Nd3 {[%clk 0:03:18]} 30. Nxf5 {[%clk 0:02:03.1]} 30...
Qxf5 {[%clk 0:03:10.6]} 31. Kf1 {[%clk 0:01:45.1]} 31... h5 {[%clk 0:03:02.5]}
32. Ke2 {[%clk 0:01:43.1]} 32... h4 {[%clk 0:02:56.9]} 33. Bxh4 {[%clk
0:01:37.3]} 33... Nxf4+ {[%clk 0:02:54.8]} 34. exf4 {[%clk 0:01:33.6]} 34...
Qg4+ {[%clk 0:02:54]} 35. f3 {[%clk 0:01:27.3]} 35... exf3+ {[%clk 0:02:48.9]}
36. gxf3 {[%clk 0:01:25.2]} 36... Qxh4 {[%clk 0:02:47]} 37. Ke3 {[%clk
0:01:19.4]} 37... Qe1+ {[%clk 0:02:42.4]} 38. Qe2 {[%clk 0:01:16.1]} 38... Bd4+
{[%clk 0:02:39.4]} 39. Kd3 {[%clk 0:01:12.3]} 39... Qxe2+ {[%clk 0:02:39.3]} 40.
Kxe2 {[%clk 0:01:11.2]} 40... Kg7 {[%clk 0:02:38.9]} 41. h3 {[%clk 0:01:08.3]}
41... Kf6 {[%clk 0:02:37.8]} 42. Kd3 {[%clk 0:01:07.4]} 42... Bg1 {[%clk
0:02:35.5]} 43. Ke4 {[%clk 0:01:05.7]} 43... Ke6 {[%clk 0:02:34.1]} 44. a3
{[%clk 0:00:56.2]} 44... f5+ {[%clk 0:02:33]} 45. Kd3 {[%clk 0:00:53.7]} 45...
Bc5 {[%clk 0:02:32.6]} 46. b4 {[%clk 0:00:52.1]} 46... Bd6 {[%clk 0:02:32.2]}
47. Ke3 {[%clk 0:00:43.7]} 47... b5 {[%clk 0:02:31.7]} 48. c5 {[%clk 0:00:42.3]}
48... Bc7 {[%clk 0:02:30.1]} 49. h4 {[%clk 0:00:33.9]} 49... Kd5 {[%clk
0:02:29.1]} 50. Kd3 {[%clk 0:00:31.8]} 50... Bxf4 {[%clk 0:02:27.2]} 51. Kc3
{[%clk 0:00:22.5]} 51... Bg3 {[%clk 0:02:25.7]} 52. h5 {[%clk 0:00:19.5]} 52...
gxh5 {[%clk 0:02:25.6]} 53. Kd3 {[%clk 0:00:18]} 53... h4 {[%clk 0:02:25.5]} 54.
Ke3 {[%clk 0:00:16.5]} 54... h3 {[%clk 0:02:25.1]} 55. Ke2 {[%clk 0:00:15.5]}
55... h2 {[%clk 0:02:24.6]} 0-1

[Event "Live Chess"]
[Site "Chess.com"]
[Date "2024.06.02"]
[Round "-"]
[White "A3ndrey9"]
[Black "ZatixMajor"]
[Result "0-1"]
[WhiteElo "1279"]
[BlackElo "2027"]
[TimeControl "300"]
[EndTime "2:48:16 PDT"]
[Termination "ZatixMajor won on time"]

1. Nf3 {[%clk 0:04:57.4]} 1... c5 {[%clk 0:04:59.5]} 2. c3 {[%clk 0:04:56.1]}
2... Nc6 {[%clk 0:04:59]} 3. d4 {[%clk 0:04:54.3]} 3... cxd4 {[%clk 0:04:58.9]}
4. Nxd4 {[%clk 0:04:52]} 4... g6 {[%clk 0:04:57.6]} 5. Nxc6 {[%clk 0:04:49.9]}
5... bxc6 {[%clk 0:04:57.5]} 6. e4 {[%clk 0:04:48.5]} 6... Bg7 {[%clk
0:04:56.6]} 7. Bf4 {[%clk 0:04:47.7]} 7... Nf6 {[%clk 0:04:55.7]} 8. Qc2 {[%clk
0:04:44.3]} 8... d5 {[%clk 0:04:49.8]} 9. exd5 {[%clk 0:04:42.5]} 9... cxd5
{[%clk 0:04:49.7]} 10. g3 {[%clk 0:04:40]} 10... O-O {[%clk 0:04:47.8]} 11. Bg2
{[%clk 0:04:38.4]} 11... Bf5 {[%clk 0:04:47.4]} 12. Qe2 {[%clk 0:04:27.4]} 12...
Qb6 {[%clk 0:04:43.2]} 13. O-O {[%clk 0:04:24.3]} 13... Rfe8 {[%clk 0:04:30.4]}
14. b4 {[%clk 0:04:09.2]} 14... e5 {[%clk 0:04:21.3]} 15. Bg5 {[%clk 0:03:57.5]}
15... Ne4 {[%clk 0:04:11]} 16. g4 {[%clk 0:03:31.8]} 16... Nxg5 {[%clk 0:03:54]}
17. gxf5 {[%clk 0:03:28.7]} 17... e4 {[%clk 0:03:46.8]} 18. Qg4 {[%clk
0:03:19.2]} 18... Nf3+ {[%clk 0:03:27.4]} 19. Bxf3 {[%clk 0:03:16.5]} 19... exf3
{[%clk 0:03:27.3]} 20. Qxf3 {[%clk 0:03:15.2]} 20... gxf5 {[%clk 0:03:23.1]} 21.
Qxf5 {[%clk 0:03:09.2]} 21... Kh8 {[%clk 0:03:15.8]} 22. Qxf7 {[%clk 0:02:47.8]}
22... Rg8 {[%clk 0:03:10.4]} 23. Kh1 {[%clk 0:02:40.7]} 23... Qh6 {[%clk
0:03:03.9]} 24. Rg1 {[%clk 0:02:15.8]} 24... Be5 {[%clk 0:02:53.6]} 25. Rxg8+
{[%clk 0:00:00.9]} 25... Rxg8 {[%clk 0:02:53.5]} 0-1

[Event "Live Chess"]
[Site "Chess.com"]
[Date "2024.06.02"]
[Round "-"]
[White "GwaryTek"]
[Black "ACM42"]
[Result "0-1"]
[WhiteElo "1883"]
[BlackElo "2153"]
[TimeControl "300"]
[EndTime "2:48:32 PDT"]
[Termination "ACM42 won - game abandoned"]

1. d4 {[%clk 0:04:50.6]} 1... Nf6 {[%clk 0:04:52.7]} 2. c4 {[%clk 0:04:50.5]}
2... g6 {[%clk 0:04:52]} 3. Nc3 {[%clk 0:04:50.3]} 3... Bg7 {[%clk 0:04:50.4]}
4. e4 {[%clk 0:04:49.9]} 4... O-O {[%clk 0:04:48.6]} 5. Nge2 {[%clk 0:04:49.5]}
5... d6 {[%clk 0:04:44.5]} 6. Ng3 {[%clk 0:04:47.2]} 6... c5 {[%clk 0:04:43.1]}
7. d5 {[%clk 0:04:46.3]} 7... a6 {[%clk 0:04:41.4]} 8. a4 {[%clk 0:04:44.5]}
8... Nbd7 {[%clk 0:04:36.5]} 9. Be2 {[%clk 0:04:43.2]} 9... Qc7 {[%clk
0:04:30.6]} 10. O-O {[%clk 0:04:41.1]} 10... e5 {[%clk 0:04:29.2]} 11. Be3
{[%clk 0:04:33.6]} 11... h5 {[%clk 0:04:26.3]} 12. f3 {[%clk 0:04:31.7]} 12...
h4 {[%clk 0:04:20.7]} 13. Nh1 {[%clk 0:04:31.2]} 13... Nh5 {[%clk 0:04:19.3]}
14. Qd2 {[%clk 0:04:29.4]} 14... Qd8 {[%clk 0:04:11.3]} 15. Bg5 {[%clk
0:04:17.2]} 15... Bf6 {[%clk 0:04:10.1]} 16. Bh6 {[%clk 0:04:16.3]} 16... Bg7
{[%clk 0:04:09]} 17. Bg5 {[%clk 0:04:15.1]} 17... Bf6 {[%clk 0:04:06.5]} 18. Bh6
{[%clk 0:04:14.1]} 18... Re8 {[%clk 0:04:05.7]} 19. a5 {[%clk 0:04:05.9]} 19...
b6 {[%clk 0:03:59.1]} 20. axb6 {[%clk 0:04:02.8]} 20... Nxb6 {[%clk 0:03:54.1]}
21. Be3 {[%clk 0:03:55.7]} 21... Bg7 {[%clk 0:03:51.4]} 22. Nf2 {[%clk
0:03:41.5]} 22... f5 {[%clk 0:03:48.4]} 23. exf5 {[%clk 0:03:38]} 23... gxf5
{[%clk 0:03:47.2]} 24. Bg5 {[%clk 0:03:21.9]} 24... Bf6 {[%clk 0:03:45.8]} 25.
Bxf6 {[%clk 0:03:21.1]} 25... Qxf6 {[%clk 0:03:44.5]} 26. Kh1 {[%clk 0:03:16.7]}
26... Ra7 {[%clk 0:03:43.1]} 27. Nd3 {[%clk 0:03:05.3]} 27... Nxc4 {[%clk
0:03:37.9]} 28. Qc1 {[%clk 0:02:52]} 28... Nb6 {[%clk 0:03:34.7]} 29. f4 {[%clk
0:02:44.7]} 29... Ng3+ {[%clk 0:03:19.3]} 30. Kg1 {[%clk 0:02:13.9]} 30... e4
{[%clk 0:03:05.4]} 31. Nf2 {[%clk 0:01:48.3]} 31... Nxe2+ {[%clk 0:02:59.8]} 0-1